[Event "Early-Titled-Tuesday-Blitz-January-23-2024"]
[Site "Chess.com"]
[Date "2024.01.23"]
[Round "3"]
[White "funnyselfmate"]
[Black "Alexchess1984"]
[Result "0-1"]
[WhiteElo "2482"]
[BlackElo "2657"]
[TimeControl "180+1"]
[EndTime "8:27:52 PST"]
[Termination "Alexchess1984 won on time"]

1. d4 {[%clk 0:03:00.9]} 1... Nf6 {[%clk 0:02:58.9]} 2. c4 {[%clk 0:03:01.5]}
2... g6 {[%clk 0:02:58.1]} 3. g3 {[%clk 0:03:02.1]} 3... c6 {[%clk 0:02:56.2]}
4. Bg2 {[%clk 0:03:02.6]} 4... d5 {[%clk 0:02:56.4]} 5. Nf3 {[%clk 0:03:03.3]}
5... Bg7 {[%clk 0:02:56.5]} 6. O-O {[%clk 0:03:03.9]} 6... O-O {[%clk
0:02:57.1]} 7. Ne5 {[%clk 0:03:01.9]} 7... Ne4 {[%clk 0:02:50.5]} 8. Nc3 {[%clk
0:02:55.7]} 8... Nxc3 {[%clk 0:02:50.1]} 9. bxc3 {[%clk 0:02:56.6]} 9... Nd7
{[%clk 0:02:28.8]} 10. Nxd7 {[%clk 0:02:35]} 10... Qxd7 {[%clk 0:02:28.5]} 11.
cxd5 {[%clk 0:02:31.7]} 11... cxd5 {[%clk 0:02:29.4]} 12. Qb3 {[%clk 0:02:30.4]}
12... Rd8 {[%clk 0:02:26.4]} 13. Rd1 {[%clk 0:02:28.2]} 13... b6 {[%clk
0:02:25.7]} 14. a4 {[%clk 0:02:16.5]} 14... Ba6 {[%clk 0:02:21.1]} 15. e4 {[%clk
0:02:14.8]} 15... Bc4 {[%clk 0:02:18.2]} 16. Qc2 {[%clk 0:02:12.3]} 16... dxe4
{[%clk 0:02:16.3]} 17. Bxe4 {[%clk 0:02:13.2]} 17... Bd5 {[%clk 0:02:16.2]} 18.
Ba3 {[%clk 0:02:08.9]} 18... e6 {[%clk 0:02:13.6]} 19. a5 {[%clk 0:01:56.4]}
19... Rac8 {[%clk 0:02:11]} 20. axb6 {[%clk 0:01:52.8]} 20... axb6 {[%clk
0:02:11.9]} 21. Bb4 {[%clk 0:01:52]} 21... Bf8 {[%clk 0:02:04.6]} 22. Bxf8
{[%clk 0:01:48.8]} 22... Kxf8 {[%clk 0:02:04.4]} 23. Ra6 {[%clk 0:01:38.2]}
23... b5 {[%clk 0:02:01.8]} 24. Rda1 {[%clk 0:01:23.4]} 24... Kg8 {[%clk
0:01:43.4]} 25. Bxd5 {[%clk 0:01:09.2]} 25... Qxd5 {[%clk 0:01:41.5]} 26. Qb2
{[%clk 0:01:02.8]} 26... h5 {[%clk 0:01:26.4]} 27. h4 {[%clk 0:00:58.6]} 27...
Qc4 {[%clk 0:01:18.5]} 28. R1a3 {[%clk 0:00:43.6]} 28... e5 {[%clk 0:01:18.4]}
29. Qb1 {[%clk 0:00:22.9]} 29... exd4 {[%clk 0:01:03.6]} 30. Rxg6+ {[%clk
0:00:18.6]} 30... fxg6 {[%clk 0:00:26]} 31. Qxg6+ {[%clk 0:00:19.5]} 31... Kf8
{[%clk 0:00:26.6]} 32. Ra7 {[%clk 0:00:18.6]} 32... Rc7 {[%clk 0:00:23.7]} 33.
Qf6+ {[%clk 0:00:14.5]} 33... Ke8 {[%clk 0:00:24.1]} 34. Qh8+ {[%clk 0:00:03.4]}
34... Kd7 {[%clk 0:00:22.4]} 35. Qh7+ {[%clk 0:00:03.6]} 35... Kc8 {[%clk
0:00:22.1]} 36. Ra8+ {[%clk 0:00:03]} 36... Kb7 {[%clk 0:00:20.5]} 37. Qe4+
{[%clk 0:00:03.6]} 37... Qc6 {[%clk 0:00:19.6]} 38. Qxc6+ {[%clk 0:00:02.6]}
38... Rxc6 {[%clk 0:00:20.5]} 39. Rxd8 {[%clk 0:00:03.1]} 39... dxc3 {[%clk
0:00:21.3]} 40. Rd1 {[%clk 0:00:02.6]} 40... b4 {[%clk 0:00:21.9]} 41. Kf1
{[%clk 0:00:02.4]} 41... b3 {[%clk 0:00:21]} 42. Ke2 {[%clk 0:00:02.6]} 42... c2
{[%clk 0:00:21.6]} 0-1

[Event "Early-Titled-Tuesday-Blitz-January-23-2024"]
[Site "Chess.com"]
[Date "2024.01.23"]
[Round "3"]
[White "Alex_Sahakyan2006"]
[Black "ViIIagra"]
[Result "1-0"]
[WhiteElo "2720"]
[BlackElo "2965"]
[TimeControl "180+1"]
[EndTime "8:27:55 PST"]
[Termination "Alex_Sahakyan2006 won by resignation"]

1. d4 {[%clk 0:03:00.9]} 1... d6 {[%clk 0:02:59.1]} 2. Nc3 {[%clk 0:02:58.8]}
2... Nf6 {[%clk 0:02:57.5]} 3. e4 {[%clk 0:02:57.4]} 3... e5 {[%clk 0:02:57.1]}
4. dxe5 {[%clk 0:02:56.5]} 4... dxe5 {[%clk 0:02:58]} 5. Qxd8+ {[%clk
0:02:56.6]} 5... Kxd8 {[%clk 0:02:58.9]} 6. Bc4 {[%clk 0:02:56.9]} 6... Ke8
{[%clk 0:02:49.3]} 7. Nf3 {[%clk 0:02:44.1]} 7... Bd6 {[%clk 0:02:48.3]} 8. Be3
{[%clk 0:02:26.7]} 8... Ke7 {[%clk 0:02:28.8]} 9. h3 {[%clk 0:02:14.5]} 9... Be6
{[%clk 0:02:16.9]} 10. Bxe6 {[%clk 0:02:08.9]} 10... Kxe6 {[%clk 0:02:17.8]} 11.
O-O-O {[%clk 0:02:05.8]} 11... Nbd7 {[%clk 0:02:13.3]} 12. g4 {[%clk 0:01:58.2]}
12... h6 {[%clk 0:01:58.3]} 13. Nd2 {[%clk 0:01:53]} 13... Bb4 {[%clk
0:01:55.8]} 14. Nb5 {[%clk 0:01:45.5]} 14... Bxd2+ {[%clk 0:01:26.1]} 15. Rxd2
{[%clk 0:01:45.4]} 15... Rhc8 {[%clk 0:01:27]} 16. Nxa7 {[%clk 0:01:40.4]} 16...
Rxa7 {[%clk 0:01:23.5]} 17. Bxa7 {[%clk 0:01:38.6]} 17... b6 {[%clk 0:01:24.1]}
18. f3 {[%clk 0:01:08.8]} 18... Ra8 {[%clk 0:01:14.5]} 19. Bxb6 {[%clk
0:01:09.1]} 19... Nxb6 {[%clk 0:01:10.3]} 20. Kb1 {[%clk 0:00:57.9]} 20... Nh7
{[%clk 0:00:49.9]} 21. h4 {[%clk 0:00:57.8]} 21... Nf8 {[%clk 0:00:46.4]} 22. b3
{[%clk 0:00:55.6]} 22... Ke7 {[%clk 0:00:45.7]} 23. Kb2 {[%clk 0:00:43.7]} 23...
Ne6 {[%clk 0:00:38.9]} 24. Rhd1 {[%clk 0:00:39.5]} 24... Rb8 {[%clk 0:00:36.4]}
25. Kc1 {[%clk 0:00:35.2]} 25... h5 {[%clk 0:00:25]} 26. g5 {[%clk 0:00:25.4]}
26... Nd4 {[%clk 0:00:18.2]} 27. f4 {[%clk 0:00:22.9]} 27... Nb5 {[%clk
0:00:13]} 28. Rf1 {[%clk 0:00:05.5]} 28... exf4 {[%clk 0:00:09.4]} 29. c4 {[%clk
0:00:03.7]} 29... Na7 {[%clk 0:00:04.8]} 30. Rxf4 {[%clk 0:00:03.8]} 30... Nc6
{[%clk 0:00:05.4]} 31. Rf5 {[%clk 0:00:02.4]} 31... g6 {[%clk 0:00:03.3]} 32.
Rc5 {[%clk 0:00:02.4]} 32... Ne5 {[%clk 0:00:03.5]} 33. Rxe5+ {[%clk 0:00:02.5]}
33... Kf8 {[%clk 0:00:03.6]} 34. Rc5 {[%clk 0:00:03]} 34... Rb7 {[%clk
0:00:04.5]} 35. Kc2 {[%clk 0:00:02.7]} 35... Ke7 {[%clk 0:00:04.9]} 36. Kc3
{[%clk 0:00:02.2]} 36... Ra7 {[%clk 0:00:04.7]} 37. a4 {[%clk 0:00:02.4]} 37...
Ra8 {[%clk 0:00:05.4]} 38. Rxc7+ {[%clk 0:00:02.6]} 38... Ke6 {[%clk 0:00:05.8]}
39. Rc6+ {[%clk 0:00:02.6]} 1-0

[Event "Early-Titled-Tuesday-Blitz-January-23-2024"]
[Site "Chess.com"]
[Date "2024.01.23"]
[Round "3"]
[White "Roosters19"]
[Black "Ziyamammadov"]
[Result "1-0"]
[WhiteElo "2328"]
[BlackElo "1908"]
[TimeControl "180+1"]
[EndTime "8:27:56 PST"]
[Termination "Roosters19 won on time"]

1. d4 {[%clk 0:03:00.9]} 1... d6 {[%clk 0:02:59.8]} 2. Nf3 {[%clk 0:02:58.9]}
2... Nf6 {[%clk 0:03:00.7]} 3. Bg5 {[%clk 0:02:55.5]} 3... g6 {[%clk 0:03:01.6]}
4. Bxf6 {[%clk 0:02:55]} 4... exf6 {[%clk 0:03:02.5]} 5. e3 {[%clk 0:02:55.2]}
5... Bg7 {[%clk 0:03:03.1]} 6. g3 {[%clk 0:02:54.9]} 6... O-O {[%clk 0:03:02.2]}
7. Bg2 {[%clk 0:02:55.5]} 7... Nd7 {[%clk 0:03:02.1]} 8. O-O {[%clk 0:02:55.5]}
8... c5 {[%clk 0:03:02.1]} 9. c3 {[%clk 0:02:55.1]} 9... f5 {[%clk 0:03:01.9]}
10. Qd3 {[%clk 0:02:55]} 10... cxd4 {[%clk 0:03:02.1]} 11. exd4 {[%clk
0:02:54.6]} 11... Rb8 {[%clk 0:03:00.7]} 12. a4 {[%clk 0:02:50.8]} 12... b6
{[%clk 0:02:59.8]} 13. Na3 {[%clk 0:02:47.6]} 13... Bb7 {[%clk 0:02:59.6]} 14.
Nb5 {[%clk 0:02:45.1]} 14... Nf6 {[%clk 0:02:51.3]} 15. Nxa7 {[%clk 0:02:39.8]}
15... Qd7 {[%clk 0:02:41.6]} 16. Nb5 {[%clk 0:02:38.4]} 16... Ne4 {[%clk
0:02:02.1]} 17. Rfe1 {[%clk 0:02:11]} 17... d5 {[%clk 0:01:41.8]} 18. Nd2 {[%clk
0:01:50.7]} 18... Rfe8 {[%clk 0:01:37.9]} 19. f3 {[%clk 0:01:45.2]} 19... Nd6
{[%clk 0:01:31.7]} 20. Nxd6 {[%clk 0:01:23.6]} 20... Qxd6 {[%clk 0:01:32.6]} 21.
f4 {[%clk 0:01:19.5]} 21... Re6 {[%clk 0:01:28.7]} 22. Rxe6 {[%clk 0:01:17.9]}
22... Qxe6 {[%clk 0:01:27.3]} 23. Nf3 {[%clk 0:01:15.2]} 23... Re8 {[%clk
0:01:15.5]} 24. Re1 {[%clk 0:01:10.1]} 24... Qd7 {[%clk 0:01:12.4]} 25. Rxe8+
{[%clk 0:01:09.3]} 25... Qxe8 {[%clk 0:01:13.3]} 26. b3 {[%clk 0:01:01.2]} 26...
Bf8 {[%clk 0:00:49.6]} 27. Kf2 {[%clk 0:00:59.2]} 27... Bd6 {[%clk 0:00:48.8]}
28. Ne5 {[%clk 0:00:49.8]} 28... f6 {[%clk 0:00:47.5]} 29. Nf3 {[%clk
0:00:48.9]} 29... Bf8 {[%clk 0:00:38]} 30. Nd2 {[%clk 0:00:46.9]} 30... Qd7
{[%clk 0:00:27.4]} 31. Qb5 {[%clk 0:00:32.7]} 31... Qd6 {[%clk 0:00:24.1]} 32.
c4 {[%clk 0:00:22.4]} 32... dxc4 {[%clk 0:00:13.8]} 33. Bxb7 {[%clk 0:00:19.9]}
33... Qxd4+ {[%clk 0:00:14.4]} 34. Ke2 {[%clk 0:00:18.5]} 34... Qd3+ {[%clk
0:00:11.6]} 35. Ke1 {[%clk 0:00:17.8]} 35... Qe3+ {[%clk 0:00:11]} 36. Kd1
{[%clk 0:00:17.4]} 36... Qg1+ {[%clk 0:00:06.7]} 37. Kc2 {[%clk 0:00:17.2]}
37... cxb3+ {[%clk 0:00:06.1]} 38. Qxb3+ {[%clk 0:00:17.1]} 38... Kh8 {[%clk
0:00:06.7]} 39. Qf7 {[%clk 0:00:17]} 39... Qc5+ {[%clk 0:00:05.7]} 40. Nc4
{[%clk 0:00:17]} 40... Qf2+ {[%clk 0:00:05]} 41. Kb3 {[%clk 0:00:16.7]} 41...
Qc5 {[%clk 0:00:04.2]} 42. Bd5 {[%clk 0:00:14.7]} 42... Qb4+ {[%clk 0:00:01.9]}
43. Kc2 {[%clk 0:00:15.3]} 1-0

[Event "Early-Titled-Tuesday-Blitz-January-23-2024"]
[Site "Chess.com"]
[Date "2024.01.23"]
[Round "3"]
[White "verrbaa"]
[Black "brm72"]
[Result "0-1"]
[WhiteElo "2490"]
[BlackElo "2693"]
[TimeControl "180+1"]
[EndTime "8:27:57 PST"]
[Termination "brm72 won on time"]

1. e4 {[%clk 0:03:00.9]} 1... c5 {[%clk 0:02:59.7]} 2. Nf3 {[%clk 0:03:00.6]}
2... Nc6 {[%clk 0:02:59.8]} 3. d4 {[%clk 0:02:48.6]} 3... cxd4 {[%clk
0:02:59.7]} 4. Nxd4 {[%clk 0:02:49.3]} 4... Nf6 {[%clk 0:03:00.3]} 5. Nc3 {[%clk
0:02:49.6]} 5... e6 {[%clk 0:03:00.4]} 6. Be2 {[%clk 0:02:37.1]} 6... Bc5 {[%clk
0:02:53.2]} 7. Nb3 {[%clk 0:02:24.3]} 7... Be7 {[%clk 0:02:51.8]} 8. O-O {[%clk
0:02:23.3]} 8... O-O {[%clk 0:02:51.3]} 9. f4 {[%clk 0:02:15.9]} 9... d6 {[%clk
0:02:45.3]} 10. Be3 {[%clk 0:02:12.7]} 10... b6 {[%clk 0:02:43]} 11. Bf3 {[%clk
0:02:05.4]} 11... Bb7 {[%clk 0:02:43]} 12. Qe2 {[%clk 0:01:48.2]} 12... a6
{[%clk 0:02:31.8]} 13. Qf2 {[%clk 0:01:43.2]} 13... b5 {[%clk 0:02:31]} 14. Rfd1
{[%clk 0:01:36.5]} 14... Qc7 {[%clk 0:02:02.8]} 15. Bb6 {[%clk 0:01:36.1]} 15...
Qb8 {[%clk 0:02:02]} 16. a4 {[%clk 0:01:35]} 16... b4 {[%clk 0:01:58]} 17. Ne2
{[%clk 0:01:35.1]} 17... a5 {[%clk 0:01:57.9]} 18. c3 {[%clk 0:01:22.8]} 18...
bxc3 {[%clk 0:01:37.2]} 19. Nxc3 {[%clk 0:01:22.3]} 19... Ra6 {[%clk 0:01:37.9]}
20. Nb5 {[%clk 0:01:11.5]} 20... Ba8 {[%clk 0:01:33.4]} 21. Be3 {[%clk
0:01:08.5]} 21... Nb4 {[%clk 0:01:30.1]} 22. e5 {[%clk 0:00:57.4]} 22... dxe5
{[%clk 0:01:23.6]} 23. Bxa8 {[%clk 0:00:57.4]} 23... Rxa8 {[%clk 0:01:22.2]} 24.
fxe5 {[%clk 0:00:41.2]} 24... Qxe5 {[%clk 0:01:21.9]} 25. Bd4 {[%clk 0:00:41.5]}
25... Qh5 {[%clk 0:01:19.4]} 26. h3 {[%clk 0:00:40.7]} 26... h6 {[%clk
0:01:17.1]} 27. Qg3 {[%clk 0:00:38.1]} 27... Kh7 {[%clk 0:01:15.7]} 28. Rac1
{[%clk 0:00:37.9]} 28... Rac8 {[%clk 0:01:14.4]} 29. Nxa5 {[%clk 0:00:29.4]}
29... Ra8 {[%clk 0:01:01.3]} 30. Nc4 {[%clk 0:00:26.5]} 30... Rxa4 {[%clk
0:00:58.1]} 31. Nbd6 {[%clk 0:00:26]} 31... Nbd5 {[%clk 0:00:52.8]} 32. b3
{[%clk 0:00:16.7]} 32... Ra2 {[%clk 0:00:51.7]} 33. Be5 {[%clk 0:00:13.3]} 33...
Rfa8 {[%clk 0:00:42.5]} 34. Rf1 {[%clk 0:00:11.7]} 34... Re2 {[%clk 0:00:35.9]}
35. Qd3+ {[%clk 0:00:09]} 35... Kg8 {[%clk 0:00:34.1]} 36. Rc2 {[%clk
0:00:07.9]} 36... Rxe5 {[%clk 0:00:26.4]} 37. Nxe5 {[%clk 0:00:07.3]} 37... Qxe5
{[%clk 0:00:27.3]} 38. Nc4 {[%clk 0:00:07.3]} 38... Qg5 {[%clk 0:00:23.8]} 39.
Re2 {[%clk 0:00:05.2]} 39... Bc5+ {[%clk 0:00:23.5]} 40. Kh1 {[%clk 0:00:04.8]}
40... Nf4 {[%clk 0:00:23.4]} 41. Qf3 {[%clk 0:00:05]} 41... N6d5 {[%clk
0:00:22]} 42. Re5 {[%clk 0:00:03.6]} 42... Qg6 {[%clk 0:00:18.1]} 43. Nb2 {[%clk
0:00:01.2]} 43... Ra2 {[%clk 0:00:17.9]} 44. Nd3 {[%clk 0:00:01.5]} 44... Nxd3
{[%clk 0:00:16.6]} 0-1

[Event "Early-Titled-Tuesday-Blitz-January-23-2024"]
[Site "Chess.com"]
[Date "2024.01.23"]
[Round "3"]
[White "ClaudiaSof"]
[Black "Irishchessman16"]
[Result "0-1"]
[WhiteElo "2263"]
[BlackElo "2492"]
[TimeControl "180+1"]
[EndTime "8:27:57 PST"]
[Termination "Irishchessman16 won on time"]

1. d4 {[%clk 0:02:51.7]} 1... f5 {[%clk 0:02:58.4]} 2. Bf4 {[%clk 0:02:50.3]}
2... Nf6 {[%clk 0:02:57]} 3. e3 {[%clk 0:02:48.9]} 3... e6 {[%clk 0:02:57.5]} 4.
Nd2 {[%clk 0:02:46.8]} 4... Be7 {[%clk 0:02:58]} 5. Ngf3 {[%clk 0:02:44.1]} 5...
d6 {[%clk 0:02:56.6]} 6. h3 {[%clk 0:02:41.2]} 6... O-O {[%clk 0:02:48.2]} 7.
Bd3 {[%clk 0:02:39.5]} 7... Nc6 {[%clk 0:02:45.8]} 8. g4 {[%clk 0:02:38.7]} 8...
Nb4 {[%clk 0:02:42.5]} 9. Be2 {[%clk 0:02:34.6]} 9... Ne4 {[%clk 0:02:35.4]} 10.
gxf5 {[%clk 0:02:29]} 10... exf5 {[%clk 0:02:33.6]} 11. Bc4+ {[%clk 0:02:02.4]}
11... d5 {[%clk 0:02:30.2]} 12. Bd3 {[%clk 0:01:55.6]} 12... Be6 {[%clk
0:02:17.5]} 13. a3 {[%clk 0:01:52.8]} 13... Nc6 {[%clk 0:02:15]} 14. c4 {[%clk
0:01:36.1]} 14... Kh8 {[%clk 0:02:02.3]} 15. Rg1 {[%clk 0:01:32.6]} 15... Bd6
{[%clk 0:01:56.1]} 16. Bxd6 {[%clk 0:01:13.8]} 16... cxd6 {[%clk 0:01:51.8]} 17.
cxd5 {[%clk 0:01:11.6]} 17... Bxd5 {[%clk 0:01:51.6]} 18. Bc4 {[%clk 0:01:03.4]}
18... Ne7 {[%clk 0:01:39.4]} 19. Bxd5 {[%clk 0:00:53.8]} 19... Nxd5 {[%clk
0:01:40.3]} 20. Qb3 {[%clk 0:00:52.2]} 20... Qa5 {[%clk 0:01:32.4]} 21. Qxb7
{[%clk 0:00:37.5]} 21... g6 {[%clk 0:01:20.6]} 22. b4 {[%clk 0:00:35.1]} 22...
Qc7 {[%clk 0:01:05.4]} 23. Qxd5 {[%clk 0:00:32.1]} 23... Qc3 {[%clk 0:01:04]}
24. Qa2 {[%clk 0:00:19.3]} 24... Rae8 {[%clk 0:01:00.2]} 25. Rb1 {[%clk
0:00:10.8]} 25... f4 {[%clk 0:00:50.6]} 26. Qb3 {[%clk 0:00:10.4]} 26... fxe3
{[%clk 0:00:37.2]} 27. fxe3 {[%clk 0:00:07.2]} 27... Qc6 {[%clk 0:00:26.3]} 28.
Qd3 {[%clk 0:00:04.4]} 28... Nxd2 {[%clk 0:00:08]} 29. Nxd2 {[%clk 0:00:04.3]}
29... Re7 {[%clk 0:00:04.3]} 30. Kd1 {[%clk 0:00:03.9]} 30... Qe8 {[%clk
0:00:03]} 31. e4 {[%clk 0:00:02.3]} 31... Ref7 {[%clk 0:00:03.4]} 32. Kc2 {[%clk
0:00:02.4]} 32... Qa4+ {[%clk 0:00:03.4]} 33. Kb2 {[%clk 0:00:02]} 33... Rb7
{[%clk 0:00:03]} 34. Qc2 {[%clk 0:00:01.8]} 34... Qe8 {[%clk 0:00:03]} 35. Rbc1
{[%clk 0:00:01.8]} 35... a5 {[%clk 0:00:02.9]} 0-1

[Event "Early-Titled-Tuesday-Blitz-January-23-2024"]
[Site "Chess.com"]
[Date "2024.01.23"]
[Round "3"]
[White "CarlosjPineror"]
[Black "Janosik"]
[Result "0-1"]
[WhiteElo "2604"]
[BlackElo "2844"]
[TimeControl "180+1"]
[EndTime "8:28:02 PST"]
[Termination "Janosik won on time"]

1. e4 {[%clk 0:03:00.9]} 1... e5 {[%clk 0:02:58.4]} 2. Nf3 {[%clk 0:02:56.1]}
2... Nc6 {[%clk 0:02:57.9]} 3. Bb5 {[%clk 0:02:55.9]} 3... Nf6 {[%clk
0:02:58.2]} 4. d3 {[%clk 0:02:55.8]} 4... Bc5 {[%clk 0:02:58]} 5. c3 {[%clk
0:02:54.2]} 5... d6 {[%clk 0:02:58.4]} 6. h3 {[%clk 0:02:53.7]} 6... O-O {[%clk
0:02:58.9]} 7. Ba4 {[%clk 0:02:53.5]} 7... Bb6 {[%clk 0:02:57.9]} 8. Nbd2 {[%clk
0:02:51.8]} 8... Ne7 {[%clk 0:02:57.6]} 9. Qe2 {[%clk 0:02:37.4]} 9... c6 {[%clk
0:02:54.6]} 10. Nf1 {[%clk 0:02:35.9]} 10... Ng6 {[%clk 0:02:55]} 11. g3 {[%clk
0:02:34.9]} 11... d5 {[%clk 0:02:54]} 12. Bc2 {[%clk 0:02:30.7]} 12... Re8
{[%clk 0:02:51.3]} 13. Be3 {[%clk 0:02:26.7]} 13... d4 {[%clk 0:02:43.7]} 14.
Bd2 {[%clk 0:02:20.9]} 14... c5 {[%clk 0:02:40.4]} 15. Bb3 {[%clk 0:02:14.2]}
15... h6 {[%clk 0:02:34.7]} 16. h4 {[%clk 0:01:57]} 16... Bg4 {[%clk 0:02:21]}
17. N1h2 {[%clk 0:01:56.5]} 17... Bh5 {[%clk 0:02:21.5]} 18. Rg1 {[%clk
0:01:56]} 18... Qd7 {[%clk 0:02:19.7]} 19. O-O-O {[%clk 0:01:49]} 19... Ng4
{[%clk 0:01:57.5]} 20. Ne1 {[%clk 0:01:29.5]} 20... dxc3 {[%clk 0:01:15.1]} 21.
Bxc3 {[%clk 0:01:17.8]} 21... Rad8 {[%clk 0:00:53.4]} 22. f3 {[%clk 0:01:04.9]}
22... Nxh2 {[%clk 0:00:46.5]} 23. Qxh2 {[%clk 0:01:03.6]} 23... c4 {[%clk
0:00:32.1]} 24. dxc4 {[%clk 0:00:56.9]} 24... Bxg1 {[%clk 0:00:31.4]} 25. Qxg1
{[%clk 0:00:57.8]} 25... Qh3 {[%clk 0:00:30]} 26. Qf2 {[%clk 0:00:44.1]} 26...
Rxd1+ {[%clk 0:00:29.3]} 27. Bxd1 {[%clk 0:00:45]} 27... Nf8 {[%clk 0:00:26.3]}
28. Nd3 {[%clk 0:00:36.6]} 28... Nd7 {[%clk 0:00:23.3]} 29. g4 {[%clk
0:00:31.8]} 29... Bxg4 {[%clk 0:00:21.5]} 30. Qxa7 {[%clk 0:00:20.3]} 30... Bxf3
{[%clk 0:00:21.8]} 31. Nf2 {[%clk 0:00:19.9]} 31... Qg2 {[%clk 0:00:18.5]} 32.
Bxf3 {[%clk 0:00:16.5]} 32... Qxf3 {[%clk 0:00:19.4]} 33. Qxb7 {[%clk
0:00:13.4]} 33... Nf6 {[%clk 0:00:17]} 34. Qb6 {[%clk 0:00:12.4]} 34... Nxe4
{[%clk 0:00:15]} 35. Nxe4 {[%clk 0:00:11.4]} 35... Qxe4 {[%clk 0:00:15.9]} 36.
c5 {[%clk 0:00:10.7]} 36... Qe3+ {[%clk 0:00:14.8]} 37. Kc2 {[%clk 0:00:10.1]}
37... e4 {[%clk 0:00:15.4]} 38. Qd6 {[%clk 0:00:08.9]} 38... Rc8 {[%clk
0:00:14.2]} 39. b4 {[%clk 0:00:06.3]} 39... Qe2+ {[%clk 0:00:14.4]} 40. Kb3
{[%clk 0:00:06.2]} 40... e3 {[%clk 0:00:13.1]} 41. c6 {[%clk 0:00:05.6]} 41...
Qb5 {[%clk 0:00:09.2]} 42. c7 {[%clk 0:00:04.7]} 42... Qe8 {[%clk 0:00:08.1]}
0-1

[Event "Early-Titled-Tuesday-Blitz-January-23-2024"]
[Site "Chess.com"]
[Date "2024.01.23"]
[Round "3"]
[White "CFN_Good_Evening"]
[Black "jcibarra"]
[Result "0-1"]
[WhiteElo "1916"]
[BlackElo "2830"]
[TimeControl "180+1"]
[EndTime "8:28:02 PST"]
[Termination "jcibarra won by resignation"]

1. e4 {[%clk 0:03:00.9]} 1... c5 {[%clk 0:03:00]} 2. c3 {[%clk 0:03:00.7]} 2...
Nf6 {[%clk 0:02:59.5]} 3. e5 {[%clk 0:03:00.7]} 3... Nd5 {[%clk 0:02:59.8]} 4.
d4 {[%clk 0:03:01.4]} 4... cxd4 {[%clk 0:03:00.4]} 5. Qxd4 {[%clk 0:03:02]} 5...
e6 {[%clk 0:03:00.1]} 6. Nf3 {[%clk 0:03:02.1]} 6... Nc6 {[%clk 0:03:00.3]} 7.
Qe4 {[%clk 0:03:02.8]} 7... f5 {[%clk 0:02:59.2]} 8. Qe2 {[%clk 0:03:02.8]} 8...
b5 {[%clk 0:02:45.4]} 9. g3 {[%clk 0:03:02]} 9... a5 {[%clk 0:02:44.1]} 10. Bg2
{[%clk 0:03:01.7]} 10... Ba6 {[%clk 0:02:43.3]} 11. O-O {[%clk 0:03:01.4]} 11...
Be7 {[%clk 0:02:43.1]} 12. Rd1 {[%clk 0:03:01.5]} 12... O-O {[%clk 0:02:36.6]}
13. Rxd5 {[%clk 0:02:46.1]} 13... exd5 {[%clk 0:02:35.6]} 14. Nd4 {[%clk
0:02:46.8]} 14... Nxd4 {[%clk 0:02:20.9]} 15. cxd4 {[%clk 0:02:47.7]} 15... Rc8
{[%clk 0:02:17.9]} 16. Bxd5+ {[%clk 0:02:46.1]} 16... Kh8 {[%clk 0:02:17.6]} 17.
Nc3 {[%clk 0:02:46]} 17... Qb6 {[%clk 0:02:16.6]} 18. Be3 {[%clk 0:02:31.5]}
18... b4 {[%clk 0:02:09.5]} 19. Na4 {[%clk 0:02:31.3]} 19... Qb5 {[%clk
0:02:06]} 20. Qxb5 {[%clk 0:02:26]} 20... Bxb5 {[%clk 0:02:06.9]} 21. Nc5 {[%clk
0:02:26.3]} 21... Bxc5 {[%clk 0:01:58.5]} 22. dxc5 {[%clk 0:02:27.2]} 22... Bc6
{[%clk 0:01:59.1]} 23. Bc4 {[%clk 0:02:20.1]} 23... h6 {[%clk 0:01:57.2]} 24. f4
{[%clk 0:02:15.9]} 24... Kh7 {[%clk 0:01:49.3]} 25. Bd4 {[%clk 0:02:13.4]} 25...
g5 {[%clk 0:01:42.3]} 26. Kf2 {[%clk 0:02:04.7]} 26... Rce8 {[%clk 0:01:39.5]}
27. h4 {[%clk 0:02:03]} 27... gxf4 {[%clk 0:01:38.5]} 28. gxf4 {[%clk
0:02:03.9]} 28... Re7 {[%clk 0:01:38.3]} 29. Rg1 {[%clk 0:01:46.5]} 29... Rg7
{[%clk 0:01:34.3]} 30. Rxg7+ {[%clk 0:01:16]} 30... Kxg7 {[%clk 0:01:35.2]} 31.
e6+ {[%clk 0:01:16.7]} 31... Kg6 {[%clk 0:01:33.7]} 32. exd7 {[%clk 0:01:16.5]}
32... Bxd7 {[%clk 0:01:33.5]} 33. Bd5 {[%clk 0:01:04.2]} 33... Rd8 {[%clk
0:01:32.5]} 34. Be5 {[%clk 0:01:00.4]} 34... Bb5 {[%clk 0:01:23.9]} 35. Bd6
{[%clk 0:00:58.6]} 35... Re8 {[%clk 0:01:19.6]} 36. Bf3 {[%clk 0:00:59]} 36...
h5 {[%clk 0:01:14.5]} 37. Be5 {[%clk 0:00:51.6]} 37... Rc8 {[%clk 0:01:04.6]}
38. Bd6 {[%clk 0:00:46.9]} 38... Bc6 {[%clk 0:01:05]} 39. Be2 {[%clk 0:00:45.4]}
39... Bd5 {[%clk 0:01:05.1]} 40. a3 {[%clk 0:00:32.7]} 40... bxa3 {[%clk
0:00:59.4]} 41. bxa3 {[%clk 0:00:33.6]} 41... Bc6 {[%clk 0:00:57.7]} 42. Ba6
{[%clk 0:00:19]} 42... Re8 {[%clk 0:00:56.7]} 43. Be5 {[%clk 0:00:19.6]} 43...
Rd8 {[%clk 0:00:53.3]} 44. Ke2 {[%clk 0:00:19.2]} 44... Rd5 {[%clk 0:00:48.8]}
45. Bd6 {[%clk 0:00:19]} 45... Rd4 {[%clk 0:00:49.1]} 46. Bd3 {[%clk 0:00:04]}
46... Ra4 {[%clk 0:00:47]} 47. Bc7 {[%clk 0:00:03.8]} 47... Rxa3 {[%clk
0:00:46.2]} 48. Kd2 {[%clk 0:00:04.7]} 48... a4 {[%clk 0:00:44.8]} 49. Bc4
{[%clk 0:00:04.2]} 49... Rh3 {[%clk 0:00:42.9]} 50. Bd8 {[%clk 0:00:01.8]} 50...
a3 {[%clk 0:00:40.5]} 51. Kc2 {[%clk 0:00:02]} 51... Ba4+ {[%clk 0:00:40.9]} 52.
Kc1 {[%clk 0:00:02.3]} 52... Rc3+ {[%clk 0:00:38.5]} 0-1